fUSD/lending_fUSD_20250916
["ID","MTS","AMOUNT","RATE_DAILY","PERIOD"]
[385862145,1758065457995,-898.0,0.00034206,2]
[385862146,1758065458005,-1178.0,0.00034206,2]
[385862147,1758065458015,-4225.0,0.00034206,2]
[385862148,1758065458026,-755.0,0.00034206,2]
[385862149,1758065458037,-3390.0,0.00034206,2]
[385862150,1758065458047,-4171.0,0.00034206,2]
[385862151,1758065458056,-150.0,0.00034246,2]
[385862152,1758065458065,-152.0,0.00034326,3]
[385862153,1758065458076,-183.06,0.00034392,60]
[385862154,1758065458086,-183.06,0.00034492,60]
[385862155,1758065458096,-2071.17759145,0.000345,14]
[385862156,1758065458106,-156.0,0.00034521,30]
[385862157,1758065458117,-159.0,0.00034521,30]
[385862158,1758065458127,-1400.0,0.00034534,7]
[385862159,1758065458136,-14822.6545837,0.00034535,7]
[385862160,1758065458146,-78416.9614259,0.00034535,7]
[385862161,1758065458154,-47347.1387248,0.00034535,7]
[385862162,1758065458163,-151.0,0.00034535,7]
[385862163,1758065458173,-151.0,0.00034535,7]
[385862164,1758065458183,-151.0,0.00034535,7]
[385862165,1758065458194,-151.0,0.00034535,7]
[385862166,1758065458203,-151.0,0.00034535,7]
[385862167,1758065458213,-151.0,0.00034535,7]
[385862168,1758065458223,-151.0,0.00034535,7]
[385862169,1758065458233,-151.0,0.00034535,7]
[385862170,1758065458243,-151.0,0.00034535,7]
[385862171,1758065458252,-154.165314,0.00034535,7]
[385862172,1758065458262,-151.0,0.00034535,7]
[385862173,1758065458270,-152.835944,0.00034535,7]
[385862174,1758065458280,-151.0,0.00034535,7]
[385862175,1758065458289,-151.0,0.00034535,7]
[385862176,1758065458298,-183.06,0.00034592,60]
[385862177,1758065458307,-1212.18286779,0.00034666,2]
[385862178,1758065458316,-183.06,0.00034692,60]
[385862179,1758065458325,-1054.00008823,0.00034781,5]
[385862180,1758065458334,-183.06,0.00034792,60]
[385862181,1758065458343,-858.425,0.00034794,22]
[385862182,1758065458352,-151.0,0.00034809,7]
[385862183,1758065458361,-200.0,0.00034809,2]
[385862184,1758065458370,-200.0,0.00034809,2]
[385862185,1758065458379,-200.0,0.00034809,2]
[385862186,1758065458387,-200.0,0.00034809,2]
[385862187,1758065458396,-200.0,0.00034809,2]
[385862188,1758065458406,-200.0,0.00034809,2]
[385862189,1758065458415,-200.0,0.00034809,2]
[385862190,1758065458424,-200.0,0.00034809,2]
[385862191,1758065458434,-200.0,0.00034809,2]
[385862192,1758065458443,-200.0,0.00034809,2]
[385862193,1758065458452,-200.0,0.00034809,2]
[385862194,1758065458461,-200.0,0.00034809,2]
[385862195,1758065458471,-200.0,0.00034809,2]
[385862196,1758065458480,-200.0,0.00034809,2]
[385862197,1758065458490,-200.0,0.00034809,2]
[385862198,1758065458499,-200.0,0.00034809,2]
[385862199,1758065458508,-200.0,0.00034809,2]
[385862200,1758065458518,-200.0,0.00034809,2]
[385862201,1758065458527,-200.0,0.00034809,2]
[385862202,1758065458536,-200.0,0.00034809,2]
[385862203,1758065458546,-200.0,0.00034809,2]
[385862204,1758065458555,-800.0,0.00034809,13]
[385862205,1758065458565,-800.0,0.00034809,13]
[385862206,1758065458574,-800.0,0.00034809,13]
[385862207,1758065458583,-800.0,0.00034809,13]
[385862208,1758065458592,-800.0,0.00034809,13]
[385862209,1758065458601,-800.0,0.00034809,13]
[385862210,1758065458611,-800.0,0.00034809,13]
[385862211,1758065458620,-800.0,0.00034809,13]
[385862212,1758065458629,-800.0,0.00034809,13]
[385862213,1758065458638,-800.0,0.00034809,13]
[385862214,1758065458647,-800.0,0.00034809,13]
[385862215,1758065458659,-800.0,0.00034809,13]
[385862216,1758065458669,-800.0,0.00034809,13]
[385862217,1758065458679,-800.0,0.00034809,13]
[385862218,1758065458688,-800.0,0.00034809,13]
[385862219,1758065458698,-800.0,0.00034809,13]
[385862220,1758065458709,-800.0,0.00034809,13]
[385862221,1758065458718,-800.0,0.00034809,13]
[385862222,1758065458727,-800.0,0.00034809,13]
[385862223,1758065458738,-800.0,0.00034809,13]
[385862224,1758065458748,-800.0,0.00034809,13]
[385862225,1758065458757,-800.0,0.00034809,13]
[385862226,1758065458766,-800.0,0.00034809,13]
[385862227,1758065458776,-206.0,0.00034809,13]
[385862228,1758065458785,-200.0,0.00034809,2]
[385862229,1758065458794,-200.0,0.00034809,2]
[385862230,1758065458804,-200.0,0.00034809,2]
[385862231,1758065458813,-200.0,0.00034809,2]
[385862232,1758065458824,-200.0,0.00034809,2]
[385862233,1758065458834,-200.0,0.00034809,2]
[385862234,1758065458843,-5228.91108625,0.0003485,60]
[385862235,1758065458852,-183.06,0.00034892,60]
[385862236,1758065458862,-188.96,0.00034892,30]
[385862237,1758065458872,-470.91,0.00034892,30]
[385862238,1758065458881,-4355.88677642,0.000349,2]
[385862239,1758065458890,-79293.60194167,0.000349,2]
[385862240,1758065458900,-183.06,0.00034992,60]
[385862241,1758065458909,-3897.62,0.00035,14]
[385862242,1758065458919,-168.0,0.00035,30]
[385862243,1758065458928,-2000.0,0.00035,2]
[385862244,1758065458938,-2000.0,0.00035,2]
[385862245,1758065458947,-2000.0,0.00035,2]
[385862246,1758065458956,-2000.0,0.00035,2]
[385862247,1758065458966,-2000.0,0.00035,2]
[385862248,1758065458975,-37311.16,0.00035,14]
[385862249,1758065458984,-2000.0,0.00035,2]
[385862250,1758065458993,-2000.0,0.00035,2]
[385862251,1758065459002,-2000.0,0.00035,2]
[385862252,1758065459011,-160.0,0.00035,30]
[385862253,1758065459021,-642.4327,0.00035,2]
[385862254,1758065459030,-160.0,0.00035,30]
[385862255,1758065459039,-43576.77135455,0.00035,7]
[385862256,1758065459048,-2000.0,0.00035,2]
[385862257,1758065459057,-183.06,0.00035092,60]
[385862258,1758065459067,-218.39609816,0.00035107,15]
[385862259,1758065459076,-183.06,0.00035192,60]
[385862260,1758065459086,-150.0,0.00035219,2]
[385862261,1758065459095,-183.06,0.00035292,60]
[385862262,1758065459104,-431.42848765,0.00035322,2]
[385862263,1758065459113,-332.60791905,0.00035322,2]
[385862264,1758065459123,-747.8093786,0.00035326,2]
[385862265,1758065459133,-174.61919141,0.00035326,2]
[385862266,1758065459141,-153.0,0.00035342,2]
[385862267,1758065459150,-153.0,0.00035342,2]
[385862268,1758065459159,-153.0,0.00035342,2]
[385862269,1758065459168,-153.0,0.00035342,2]
[385862270,1758065459177,-153.0,0.00035342,2]
[385862271,1758065459186,-153.0,0.00035342,2]
[385862272,1758065459195,-153.0,0.00035342,2]
[385862273,1758065459204,-153.0,0.00035342,2]
[385862274,1758065459213,-153.0,0.00035342,2]
[385862275,1758065459222,-153.0,0.00035342,2]
[385862276,1758065459231,-153.0,0.00035342,2]
[385862277,1758065459240,-153.0,0.00035342,2]
[385862278,1758065459250,-153.0,0.00035342,2]
[385862279,1758065459259,-153.0,0.00035342,2]
[385862280,1758065459269,-153.0,0.00035342,2]
[385862281,1758065459278,-153.0,0.00035342,2]
[385862282,1758065459287,-153.0,0.00035342,2]
[385862283,1758065459297,-153.0,0.00035342,2]
[385862284,1758065459306,-153.0,0.00035342,2]
[385862285,1758065459317,-153.0,0.00035342,2]
[385862286,1758065459326,-153.0,0.00035342,2]
[385862287,1758065459336,-153.0,0.00035342,2]
[385862288,1758065459346,-153.0,0.00035342,2]
[385862289,1758065459356,-153.0,0.00035342,2]
[385862290,1758065459365,-153.0,0.00035342,2]
[385862291,1758065459375,-153.0,0.00035342,2]
[385862292,1758065459384,-153.0,0.00035342,2]
[385862293,1758065459393,-153.0,0.00035342,2]
[385862294,1758065459403,-153.0,0.00035342,2]
[385862295,1758065459412,-153.0,0.00035342,2]
[385862296,1758065459421,-153.0,0.00035342,2]
[385862297,1758065459430,-153.0,0.00035342,2]
[385862298,1758065459439,-153.0,0.00035342,2]
[385862299,1758065459449,-153.0,0.00035342,2]
[385862300,1758065459458,-153.0,0.00035342,2]
[385862301,1758065459468,-153.0,0.00035342,2]
[385862302,1758065459477,-153.0,0.00035342,2]
[385862303,1758065459486,-153.0,0.00035342,2]
[385862304,1758065459495,-153.0,0.00035342,2]
[385862305,1758065459504,-153.0,0.00035342,2]
[385862306,1758065459513,-153.0,0.00035342,2]
[385862307,1758065459523,-153.0,0.00035342,2]
[385862308,1758065459533,-153.0,0.00035342,2]
[385862309,1758065459542,-153.0,0.00035342,2]
[385862310,1758065459551,-153.0,0.00035342,2]
[385862311,1758065459560,-153.0,0.00035342,2]
[385862312,1758065459570,-153.0,0.00035342,2]
[385862313,1758065459579,-153.0,0.00035342,2]
[385862314,1758065459589,-153.0,0.00035342,2]
[385862315,1758065459599,-153.0,0.00035342,2]
[385862316,1758065459608,-153.0,0.00035342,2]
[385862317,1758065459617,-153.0,0.00035342,2]
[385862318,1758065459626,-153.0,0.00035342,2]
[385862319,1758065459636,-153.0,0.00035342,2]
[385862320,1758065459646,-153.0,0.00035342,2]
[385862321,1758065459656,-153.0,0.00035342,2]
[385862322,1758065459667,-153.0,0.00035342,2]
[385862323,1758065459676,-153.0,0.00035342,2]
[385862324,1758065459685,-153.0,0.00035342,2]
[385862325,1758065459695,-153.0,0.00035342,2]
[385862326,1758065459705,-153.0,0.00035342,2]
[385862327,1758065459715,-153.0,0.00035342,2]
[385862328,1758065459724,-153.0,0.00035342,2]
[385862329,1758065459734,-153.0,0.00035342,2]
[385862330,1758065459743,-153.0,0.00035342,2]
[385862331,1758065459753,-153.0,0.00035342,2]
[385862332,1758065459762,-153.0,0.00035342,2]
[385862333,1758065459771,-153.0,0.00035342,2]
[385862334,1758065459781,-153.0,0.00035342,2]
[385862335,1758065459790,-153.0,0.00035342,2]
[385862336,1758065459800,-153.0,0.00035342,2]
[385862337,1758065459810,-153.0,0.00035342,2]
[385862338,1758065459820,-153.0,0.00035342,2]
[385862339,1758065459829,-153.0,0.00035342,2]
[385862340,1758065459839,-153.0,0.00035342,2]
[385862341,1758065459850,-153.0,0.00035342,2]
[385862342,1758065459859,-153.0,0.00035342,2]
[385862343,1758065459869,-153.0,0.00035342,2]
[385862344,1758065459878,-153.0,0.00035342,2]
[385862345,1758065459887,-153.0,0.00035342,2]
[385862346,1758065459896,-153.0,0.00035342,2]
[385862347,1758065459905,-153.0,0.00035342,2]
[385862348,1758065459914,-153.0,0.00035342,2]
[385862349,1758065459925,-153.0,0.00035342,2]
[385862350,1758065459935,-153.0,0.00035342,2]
[385862351,1758065459945,-1400.0,0.00035356,7]
[385862352,1758065459956,-500.0,0.00035367,120]
[385862353,1758065459967,-183.06,0.00035392,60]
[385862354,1758065459977,-2687.84,0.00035455,2]
[385862355,1758065459986,-19999.99,0.00035455,2]
[385862356,1758065459995,-29999.99,0.00035455,2]
[385862357,1758065460005,-183.06,0.00035492,60]
[385862358,1758065460014,-1245.00834907,0.000355,2]
[385862359,1758065460023,-5007.08603,0.00035585,30]
[385862360,1758065460032,-183.06,0.00035592,60]
[385862361,1758065460042,-192.0,0.000356,15]
[385862362,1758065460052,-150.0,0.00035616,2]
[385862363,1758065460062,-953.73504829,0.00035616,5]
[385862364,1758065460072,-292.21,0.00035616,2]
[385862365,1758065460081,-304.44854342,0.00035616,2]
[385862366,1758065460090,-183.06,0.00035692,60]
[385862367,1758065460099,-183.06,0.00035792,60]
[385862368,1758065460108,-3897.62,0.000358,14]
[385862369,1758065460118,-151.0,0.000358,30]
[385862370,1758065460128,-8375.24189448,0.0003585,60]
[385862371,1758065460137,-313.31946,0.00035888,30]
[385862372,1758065460146,-183.06,0.00035892,60]
[385862373,1758065460155,-500.0,0.00035908,30]
[385862374,1758065460165,-500.0,0.00035908,30]
[385862375,1758065460174,-500.0,0.00035908,30]
[385862376,1758065460184,-183.06,0.00035992,60]
[385862377,1758065460193,-18395.68243263,0.00035999,2]
[385862378,1758065460202,-215.94934195,0.00035999,10]
[385862379,1758065460211,-6816.91,0.00036,7]
[385862380,1758065460220,-31760.82,0.00036,2]
[385862381,1758065460229,-6816.91,0.00036,7]
[385862382,1758065460238,-6816.91,0.00036,7]
[385862383,1758065460247,-31760.82,0.00036,2]
[385862384,1758065460257,-31760.82,0.00036,2]
[385862385,1758065460265,-9415.93,0.00036,7]
[385862386,1758065460275,-10675.60129012,0.00036,2]
[385862387,1758065460285,-168.0,0.00036,30]
[385862388,1758065460294,-151.0,0.00036,30]
[385862389,1758065460305,-151.0,0.00036,30]
[385862390,1758065460314,-151.0,0.00036,30]
[385862391,1758065460322,-151.0,0.00036,30]
[385862392,1758065460331,-731.0,0.00036,2]
[385862393,1758065460341,-7814.776622,0.00036,5]
[385862394,1758065460350,-4000.0,0.00036,4]
[385862395,1758065460360,-641.075,0.00036026,2]
[385862396,1758065460369,-188.96,0.00036033,60]
[385862397,1758065460379,-470.91,0.00036033,60]
[385862398,1758065460390,-313.31946,0.00036088,30]
[385862399,1758065460401,-183.06,0.00036092,60]
[385862400,1758065460412,-31760.82,0.000361,2]
[385862401,1758065460423,-155.0,0.000361,120]
[385862402,1758065460435,-2934.65,0.000361,7]
[385862403,1758065460444,-177.11285504,0.00036113,2]
[385862404,1758065460453,-177.11285504,0.00036113,2]
[385862405,1758065460465,-177.11285504,0.00036113,2]
[385862406,1758065460475,-177.11285504,0.00036113,2]
[385862407,1758065460485,-177.11285504,0.00036113,2]
[385862408,1758065460496,-177.11285504,0.00036113,2]
[385862409,1758065460505,-177.11285504,0.00036113,2]
[385862410,1758065460516,-236.55444075,0.00036113,2]
[385862411,1758065460526,-2025.95007816,0.0003612,8]
[385862412,1758065460535,-1400.0,0.00036178,7]
[385862413,1758065460544,-500.0,0.00036182,30]
[385862414,1758065460554,-500.0,0.00036182,30]
[385862415,1758065460564,-183.06,0.00036192,60]
[385862416,1758065460573,-6816.91,0.000362,7]
[385862417,1758065460582,-159.0,0.00036247,30]
[385862418,1758065460591,-160.0,0.00036247,30]
[385862419,1758065460600,-313.31946,0.00036288,30]
[385862420,1758065460609,-183.06,0.00036292,60]
[385862421,1758065460619,-1390.0,0.00036343,20]
[385862422,1758065460630,-183.06,0.00036392,60]
[385862423,1758065460639,-6816.91,0.000364,7]
[385862424,1758065460809,-31760.82,0.000364,2]
[385862425,1758065460819,-500.0,0.00036456,30]
[385862426,1758065460828,-500.0,0.00036456,30]
[385862427,1758065460838,-313.31946,0.00036488,30]
[385862428,1758065460847,-183.06,0.00036492,60]
[385862429,1758065460857,-3030.25439804,0.000365,50]
[385862430,1758065460867,-580.94433242,0.000365,120]
[385862431,1758065460877,-153.88,0.00036559,60]
[385862432,1758065460887,-183.53,0.00036592,60]
[385862433,1758065460896,-183.06,0.00036592,60]
[385862434,1758065460906,-3897.62,0.000366,14]
[385862435,1758065460915,-700.0,0.000366,13]
[385862436,1758065460924,-153.88,0.00036659,60]
[385862437,1758065460934,-313.31946,0.00036688,30]
[385862438,1758065460943,-447.3913417,0.00036691,2]
[385862439,1758065460952,-344.91441206,0.00036691,2]
[385862440,1758065460961,-183.53,0.00036692,60]
[385862441,1758065460970,-183.06,0.00036692,60]
[385862442,1758065460979,-154.0,0.000367,120]
[385862443,1758065460990,-700.0,0.000367,13]
[385862444,1758065460999,-1390.0,0.00036718,20]
[385862445,1758065461009,-500.0,0.0003673,30]
[385862446,1758065461019,-500.0,0.0003673,30]
[385862447,1758065461028,-153.88,0.00036759,60]
[385862448,1758065461038,-183.53,0.00036792,60]
[385862449,1758065461047,-183.06,0.00036792,60]
[385862450,1758065461057,-46803.95,0.000368,120]
[385862451,1758065461067,-1246.0,0.000368,13]
[385862452,1758065461076,-153.88,0.00036859,60]
[385862453,1758065461086,-12587.5,0.00036875,12]
[385862454,1758065461095,-150.0,0.0003688,2]
[385862455,1758065461105,-1044.3982,0.00036888,7]
[385862456,1758065461114,-313.31946,0.00036888,30]
[385862457,1758065461123,-183.53,0.00036892,60]
[385862458,1758065461133,-183.06,0.00036892,60]
[385862459,1758065461143,-2431.89756366,0.000369,2]
[385862460,1758065461152,-5800.0,0.00036923,2]
[385862461,1758065461161,-153.88,0.00036959,60]
[385862462,1758065461170,-150.0,0.00036986,2]
[385862463,1758065461180,-183.53,0.00036992,60]
[385862464,1758065461189,-183.06,0.00036992,60]
[385862465,1758065461199,-480295.24517123,0.00037,2]
[385862466,1758065461208,-250.52685477,0.00037,120]
[385862467,1758065461216,-162.6497438,0.00037,2]
[385862468,1758065461226,-949.46807374,0.00037,30]
[385862469,1758065461235,-230312.97544568,0.00037,2]
[385862470,1758065461244,-51186.64305614,0.00037,2]
[385862471,1758065461253,-151.0,0.00037,30]
[385862472,1758065461263,-1400.0,0.00037,7]
[385862473,1758065461273,-151.0,0.00037,30]
[385862474,1758065461282,-151.0,0.00037,30]
[385862475,1758065461291,-151.0,0.00037,30]
[385862476,1758065461300,-300.471031,0.00037,30]
[385862477,1758065461310,-151.0,0.00037,30]
[385862478,1758065461318,-151.0,0.00037,30]
[385862479,1758065461327,-151.0,0.00037,30]
[385862480,1758065461337,-151.0,0.00037,30]
[385862481,1758065461346,-151.0,0.00037,30]
[385862482,1758065461355,-151.0,0.00037,30]
[385862483,1758065461364,-151.0,0.00037,30]
[385862484,1758065461374,-151.0,0.00037,30]
[385862485,1758065461383,-151.0,0.00037,30]
[385862486,1758065461393,-151.0,0.00037,30]
[385862487,1758065461403,-151.0,0.00037,30]
[385862488,1758065461413,-151.0,0.00037,30]
[385862489,1758065461423,-151.0,0.00037,30]
[385862490,1758065461431,-231.410212,0.00037,30]
[385862491,1758065461440,-231.410212,0.00037,30]
[385862492,1758065461450,-231.410212,0.00037,30]
[385862493,1758065461459,-231.410212,0.00037,30]
[385862494,1758065461468,-151.0,0.00037,30]
[385862495,1758065461477,-151.0,0.00037,30]
[385862496,1758065461487,-151.0,0.00037,30]
[385862497,1758065461497,-851.889654,0.00037,30]
[385862498,1758065461506,-151.0,0.00037,30]
[385862499,1758065461515,-151.0,0.00037,30]
[385862500,1758065461524,-211.418169,0.00037,30]
[385862501,1758065461533,-421.952722,0.00037,30]
[385862502,1758065461542,-281.325046,0.00037,30]
[385862503,1758065461551,-421.952722,0.00037,30]
[385862504,1758065461560,-421.952722,0.00037,30]
[385862505,1758065461569,-151.0,0.00037,30]
[385862506,1758065461578,-308.858037,0.00037,30]
[385862507,1758065461587,-421.952722,0.00037,30]
[385862508,1758065461596,-151.0,0.00037,30]
[385862509,1758065461605,-308.858037,0.00037,30]
[385862510,1758065461614,-308.858037,0.00037,30]
[385862511,1758065461624,-935.537838,0.00037,30]
[385862512,1758065461633,-308.858037,0.00037,30]
[385862513,1758065461642,-935.537838,0.00037,30]
[385862514,1758065461651,-151.0,0.00037,30]
[385862515,1758065461664,-151.0,0.00037,30]
[385862516,1758065461674,-935.537838,0.00037,30]
[385862517,1758065461683,-151.0,0.00037,30]
[385862518,1758065461692,-935.537838,0.00037,30]
[385862519,1758065461702,-151.0,0.00037,30]
[385862520,1758065461711,-151.0,0.00037,30]
[385862521,1758065461721,-151.0,0.00037,30]
[385862522,1758065461730,-151.0,0.00037,30]
[385862523,1758065461739,-287.274067,0.00037,30]
[385862524,1758065461749,-265.598543,0.00037,30]
[385862525,1758065461759,-287.274067,0.00037,30]
[385862526,1758065461768,-151.0,0.00037,30]
[385862527,1758065461778,-151.0,0.00037,30]
[385862528,1758065461787,-287.274067,0.00037,30]
[385862529,1758065461796,-287.274067,0.00037,30]
[385862530,1758065461806,-151.0,0.00037,30]
[385862531,1758065461815,-151.0,0.00037,30]
[385862532,1758065461824,-151.0,0.00037,30]
[385862533,1758065461834,-151.0,0.00037,30]
[385862534,1758065461843,-247.967251,0.00037,30]
[385862535,1758065461852,-151.0,0.00037,30]
[385862536,1758065461861,-151.0,0.00037,30]
[385862537,1758065461870,-151.0,0.00037,30]
[385862538,1758065461879,-173.809067,0.00037,30]
[385862539,1758065461888,-173.809067,0.00037,30]
[385862540,1758065461898,-173.809067,0.00037,30]
[385862541,1758065461907,-173.809058,0.00037,30]
[385862542,1758065461916,-151.0,0.00037,30]
[385862543,1758065461926,-151.0,0.00037,30]
[385862544,1758065461935,-151.0,0.00037,30]
[385862545,1758065461945,-160.322362,0.00037,30]
[385862546,1758065461954,-151.0,0.00037,30]
[385862547,1758065461963,-500.0,0.00037004,30]
[385862548,1758065461973,-566.38,0.00037004,30]
[385862549,1758065461982,-176.96836635,0.0003702,2]
[385862550,1758065461991,-218.39609816,0.0003702,15]
[385862551,1758065461999,-1024.44975094,0.0003702,2]
[385862552,1758065462009,-1341.90126392,0.0003702,2]
[385862553,1758065462018,-506.35500661,0.00037031,2]
[385862554,1758065462027,-153.88,0.00037059,60]
[385862555,1758065462036,-313.31946,0.00037088,30]
[385862556,1758065462045,-151.0,0.0003709,30]
[385862557,1758065462054,-151.0,0.0003709,30]
[385862558,1758065462063,-152.901062,0.0003709,30]
[385862559,1758065462072,-151.0,0.0003709,30]
[385862560,1758065462081,-151.0,0.0003709,30]
[385862561,1758065462090,-151.0,0.0003709,30]
[385862562,1758065462099,-151.0,0.0003709,30]
[385862563,1758065462108,-151.0,0.0003709,30]
[385862564,1758065462117,-151.0,0.0003709,30]
[385862565,1758065462126,-151.0,0.0003709,30]
[385862566,1758065462135,-151.0,0.0003709,30]
[385862567,1758065462144,-151.0,0.0003709,30]
[385862568,1758065462154,-183.53,0.00037092,60]
[385862569,1758065462163,-183.06,0.00037092,60]
[385862570,1758065462172,-1390.0,0.00037093,20]
[385862571,1758065462181,-151.0,0.0003712,30]
[385862572,1758065462189,-151.0,0.0003712,30]
[385862573,1758065462198,-151.0,0.0003712,30]
[385862574,1758065462207,-151.0,0.0003712,30]
[385862575,1758065462216,-151.0,0.0003712,30]
[385862576,1758065462225,-151.0,0.0003712,30]
[385862577,1758065462233,-233.861284,0.0003712,30]
[385862578,1758065462242,-151.0,0.0003712,30]
[385862579,1758065462252,-151.0,0.0003712,30]
[385862580,1758065462261,-151.0,0.0003712,30]
[385862581,1758065462270,-151.0,0.0003712,30]
[385862582,1758065462279,-151.0,0.0003712,30]
[385862583,1758065462288,-301.043276,0.0003712,30]
[385862584,1758065462297,-151.0,0.0003712,30]
[385862585,1758065462307,-151.0,0.0003712,30]
[385862586,1758065462315,-151.0,0.0003712,30]
[385862587,1758065462324,-231.410212,0.0003712,30]
[385862588,1758065462333,-231.410212,0.0003712,30]
[385862589,1758065462342,-231.410212,0.0003712,30]
[385862590,1758065462351,-231.410212,0.0003712,30]
[385862591,1758065462360,-151.0,0.0003712,30]
[385862592,1758065462370,-151.0,0.0003712,30]
[385862593,1758065462379,-160.428636,0.0003712,30]
[385862594,1758065462388,-851.889654,0.0003712,30]
[385862595,1758065462396,-151.0,0.0003712,30]
[385862596,1758065462405,-151.0,0.0003712,30]
[385862597,1758065462414,-421.952722,0.0003712,30]
[385862598,1758065462423,-421.952722,0.0003712,30]
[385862599,1758065462432,-421.952722,0.0003712,30]
[385862600,1758065462441,-151.0,0.0003712,30]
[385862601,1758065462450,-421.952722,0.0003712,30]
[385862602,1758065462459,-308.858037,0.0003712,30]
[385862603,1758065462467,-151.0,0.0003712,30]
[385862604,1758065462476,-308.858037,0.0003712,30]
[385862605,1758065462485,-308.858037,0.0003712,30]
[385862606,1758065462495,-935.537838,0.0003712,30]
[385862607,1758065462504,-308.858037,0.0003712,30]
[385862608,1758065462513,-935.537838,0.0003712,30]
[385862609,1758065462522,-151.0,0.0003712,30]
[385862610,1758065462532,-935.537838,0.0003712,30]
[385862611,1758065462541,-151.0,0.0003712,30]
[385862612,1758065462550,-935.537838,0.0003712,30]
[385862613,1758065462559,-156.577676,0.0003712,30]
[385862614,1758065462568,-151.0,0.0003712,30]
[385862615,1758065462577,-151.0,0.0003712,30]
[385862616,1758065462586,-287.274067,0.0003712,30]
[385862617,1758065462594,-287.274067,0.0003712,30]
[385862618,1758065462604,-254.586941,0.0003712,30]
[385862619,1758065462613,-287.274067,0.0003712,30]
[385862620,1758065462622,-287.274067,0.0003712,30]
[385862621,1758065462631,-151.0,0.0003712,30]
[385862622,1758065462640,-300.0,0.0003713,10]
[385862623,1758065462648,-666.0,0.0003713,10]
[385862624,1758065462660,-300.0,0.0003713,10]
[385862625,1758065462670,-511.71847187,0.0003713,30]
[385862626,1758065462679,-672.14932845,0.0003713,10]
[385862627,1758065462688,-300.0,0.0003713,10]
[385862628,1758065462699,-666.0,0.0003713,10]
[385862629,1758065462708,-666.0,0.0003713,10]
[385862630,1758065462717,-300.0,0.0003713,83]
[385862631,1758065462726,-153.606594,0.00037131,30]
[385862632,1758065462735,-301.86290389,0.00037131,2]
[385862633,1758065462745,-301.86290389,0.00037131,2]
[385862634,1758065462754,-51186.64305614,0.00037131,2]
[385862635,1758065462763,-51186.64305614,0.00037131,2]
[385862636,1758065462772,-51186.64305614,0.00037131,2]
[385862637,1758065462782,-300.0,0.00037134,10]
[385862638,1758065462791,-666.0,0.00037134,10]
[385862639,1758065462800,-300.0,0.00037134,10]
[385862640,1758065462809,-1624.91128719,0.00037135,2]
[385862641,1758065462820,-1624.91128719,0.00037135,2]
[385862642,1758065462829,-300.0,0.00037153,10]
[385862643,1758065462838,-308.69935872,0.00037158,10]
[385862644,1758065462847,-153.88,0.00037159,60]